[Event "Deloitte NK 2021"]
[Site "Hoogeveen, Netherlands"]
[Date "2021.10.19"]
[Round "5.1"]
[White "Janssen, Ruud"]
[Black "Lai, Hing Ting"]
[Result "1-0"]
[TimeControl "90min/40moves + 30min + 30sec/move"]
[WhiteElo "2534"]
[BlackElo "2439"]

1. c4 {[%clk 01:30:57]} {[%emt 00:00:02]} Nf6 {[%clk 01:30:52]} {[%emt
00:00:09]} 2. Nc3 {[%clk 01:31:19]} {[%emt 00:00:08]} e6 {[%clk 01:31:17]}
{[%emt 00:00:05]} 3. e4 {[%clk 01:31:40]} {[%emt 00:00:09]} d5 {[%clk
01:31:42]} {[%emt 00:00:05]} 4. e5 {[%clk 01:32:01]} {[%emt 00:00:09]} d4
{[%clk 01:32:03]} {[%emt 00:00:09]} 5. exf6 {[%clk 01:32:24]} {[%emt 00:00:06]}
dxc3 {[%clk 01:32:28]} {[%emt 00:00:06]} 6. bxc3 {[%clk 01:32:48]} {[%emt
00:00:06]} Qxf6 {[%clk 01:32:52]} {[%emt 00:00:06]} 7. Nf3 {[%clk 01:33:09]}
{[%emt 00:00:09]} Nc6 {[%clk 01:32:31]} {[%emt 00:00:52]} 8. Bd3 {[%clk
01:33:26]} {[%emt 00:00:12]} Ne5 {[%clk 01:30:27]} {[%emt 00:02:34]} 9. Be4
{[%clk 01:29:12]} {[%emt 00:04:44]} Nxf3+ {[%clk 01:26:25]} {[%emt 00:04:32]}
10. Bxf3 {[%clk 01:28:24]} {[%emt 00:01:17]} e5 {[%clk 01:14:22]} {[%emt
00:12:34]} 11. O-O {[%clk 01:25:25]} {[%emt 00:03:29]} Be7 {[%clk 01:10:30]}
{[%emt 00:04:22]} 12. Rb1 {[%clk 01:07:02]} {[%emt 00:18:53]} c6 {[%clk
01:07:23]} {[%emt 00:03:37]} 13. Re1 {[%clk 01:05:11]} {[%emt 00:02:21]} O-O
{[%clk 01:05:06]} {[%emt 00:02:47]} 14. Qe2 {[%clk 01:04:30]} {[%emt 00:01:11]}
Bd6 {[%clk 01:01:50]} {[%emt 00:03:46]} 15. d4 {[%clk 01:02:35]} {[%emt
00:02:25]} exd4 {[%clk 00:59:09]} {[%emt 00:03:11]} 16. cxd4 {[%clk 01:02:56]}
{[%emt 00:00:08]} Qxd4 {[%clk 00:57:39]} {[%emt 00:02:01]} 17. Rb3 {[%clk
00:52:01]} {[%emt 00:11:25]} Be6 {[%clk 00:45:27]} {[%emt 00:12:42]} 18. Rd3
{[%clk 00:46:22]} {[%emt 00:06:09]} Bxh2+ {[%clk 00:44:22]} {[%emt 00:01:36]}
19. Kxh2 {[%clk 00:46:40]} {[%emt 00:00:11]} Qh4+ {[%clk 00:44:45]} {[%emt
00:00:08]} 20. Kg1 {[%clk 00:47:06]} {[%emt 00:00:03]} Bxc4 {[%clk 00:45:06]}
{[%emt 00:00:10]} 21. g3 {[%clk 00:35:49]} {[%emt 00:11:46]} Bxd3 {[%clk
00:42:24]} {[%emt 00:03:12]} 22. Qxd3 {[%clk 00:36:11]} {[%emt 00:00:08]} Qf6
{[%clk 00:42:19]} {[%emt 00:00:35]} 23. Kg2 {[%clk 00:31:54]} {[%emt 00:04:47]}
Rfe8 {[%clk 00:34:12]} {[%emt 00:08:37]} 24. Rh1 {[%clk 00:31:58]} {[%emt
00:00:26]} h6 {[%clk 00:33:08]} {[%emt 00:01:35]} 25. Qb3 {[%clk 00:30:09]}
{[%emt 00:02:18]} Re7 {[%clk 00:31:05]} {[%emt 00:02:33]} 26. Bb2 {[%clk
00:25:27]} {[%emt 00:05:12]} Qe6 {[%clk 00:29:35]} {[%emt 00:02:00]} 27. Qc3
{[%clk 00:24:46]} {[%emt 00:01:12]} f6 {[%clk 00:29:36]} {[%emt 00:00:29]} 28.
Rh4 {[%clk 00:16:13]} {[%emt 00:09:02]} Qf7 {[%clk 00:25:43]} {[%emt 00:04:23]}
29. a4 {[%clk 00:11:34]} {[%emt 00:05:09]} Rd8 {[%clk 00:24:05]} {[%emt
00:02:08]} 30. a5 {[%clk 00:11:27]} {[%emt 00:00:37]} a6 {[%clk 00:24:10]}
{[%emt 00:00:26]} 31. Rg4 {[%clk 00:09:36]} {[%emt 00:02:20]} Kh8 {[%clk
00:21:15]} {[%emt 00:03:25]} 32. Rf4 {[%clk 00:09:28]} {[%emt 00:00:38]} Re6
{[%clk 00:20:07]} {[%emt 00:01:38]} 33. Qc2 {[%clk 00:08:46]} {[%emt 00:01:12]}
Red6 {[%clk 00:16:55]} {[%emt 00:03:43]} 34. Qf5 {[%clk 00:08:04]} {[%emt
00:01:11]} Qd7 {[%clk 00:16:07]} {[%emt 00:01:18]} 35. Qh5 {[%clk 00:06:50]}
{[%emt 00:01:45]} Qe8 {[%clk 00:12:58]} {[%emt 00:03:38]} 36. Qh4 {[%clk
00:07:08]} {[%emt 00:00:12]} Qf7 {[%clk 00:12:29]} {[%emt 00:00:59]} 37. Be4
{[%clk 00:06:43]} {[%emt 00:00:55]} Re6 {[%clk 00:03:51]} {[%emt 00:09:09]} 38.
Qg4 {[%clk 00:06:03]} {[%emt 00:01:09]} Qg8 {[%clk 00:01:12]} {[%emt 00:03:10]}
39. Qg6 {[%clk 00:05:29]} {[%emt 00:01:04]} Rxe4 {[%clk 00:00:37]} {[%emt
00:01:05]} 40. Rxe4 {[%emt 00:01:41]} Qd5 {[%clk 00:00:44]} 41. Bxf6 {[%clk
00:01:11]} {[%emt 00:04:00]} 1-0

[Event "Deloitte NK 2021"]
[Site "Hoogeveen, Netherlands"]
[Date "2021.10.19"]
[Round "5.2"]
[White "Zwirs, Nico"]
[Black "Ernst, Sipke"]
[Result "1/2-1/2"]
[TimeControl "90min/40moves + 30min + 30sec/move"]
[WhiteElo "2439"]
[BlackElo "2534"]

1. e4 {[%clk 01:30:57]} {[%emt 00:00:01]} e6 {[%clk 01:30:57]} {[%emt
00:00:04]} 2. d4 {[%clk 01:31:07]} {[%emt 00:00:19]} d5 {[%clk 01:31:22]}
{[%emt 00:00:05]} 3. Nc3 {[%clk 01:31:20]} {[%emt 00:00:18]} Bb4 {[%clk
01:31:47]} {[%emt 00:00:05]} 4. e5 {[%clk 01:30:39]} {[%emt 00:01:11]} c5
{[%clk 01:32:13]} {[%emt 00:00:04]} 5. a3 {[%clk 01:30:37]} {[%emt 00:00:33]}
Ba5 {[%clk 01:32:39]} {[%emt 00:00:04]} 6. b4 {[%clk 01:24:49]} {[%emt
00:06:18]} cxd4 {[%clk 01:32:54]} {[%emt 00:00:14]} 7. Nb5 {[%clk 01:23:52]}
{[%emt 00:01:28]} Bc7 {[%clk 01:33:10]} {[%emt 00:00:12]} 8. f4 {[%clk
01:21:51]} {[%emt 00:02:32]} Bd7 {[%clk 01:33:26]} {[%emt 00:00:14]} 9. Nxd4
{[%clk 01:18:52]} {[%emt 00:03:29]} Nc6 {[%clk 01:24:22]} {[%emt 00:09:34]} 10.
Ngf3 {[%clk 01:12:41]} {[%emt 00:06:41]} Nxd4 {[%clk 01:21:46]} {[%emt
00:03:06]} 11. Nxd4 {[%clk 01:12:26]} {[%emt 00:00:45]} Ne7 {[%clk 01:21:57]}
{[%emt 00:00:19]} 12. Be3 {[%clk 01:05:42]} {[%emt 00:07:13]} Bb6 {[%clk
01:12:36]} {[%emt 00:09:52]} 13. Bd3 {[%clk 00:56:04]} {[%emt 00:10:08]} Nf5
{[%clk 01:02:36]} {[%emt 00:10:30]} 14. Nxf5 {[%clk 00:51:21]} {[%emt
00:05:14]} exf5 {[%clk 01:03:00]} {[%emt 00:00:05]} 15. Qf3 {[%clk 00:51:10]}
{[%emt 00:00:40]} O-O {[%clk 00:56:28]} {[%emt 00:07:03]} 16. O-O {[%clk
00:41:32]} {[%emt 00:10:07]} Rc8 {[%clk 00:46:52]} {[%emt 00:10:07]} 17. a4
{[%clk 00:37:05]} {[%emt 00:04:58]} Be6 {[%clk 00:42:12]} {[%emt 00:05:09]} 18.
Bxb6 {[%clk 00:25:57]} {[%emt 00:11:38]} Qxb6+ {[%clk 00:41:12]} {[%emt
00:01:30]} 19. Qf2 {[%clk 00:26:18]} {[%emt 00:00:09]} d4 {[%clk 00:37:51]}
{[%emt 00:03:51]} 20. Rfb1 {[%clk 00:25:59]} {[%emt 00:00:49]} g6 {[%clk
00:26:46]} {[%emt 00:11:35]} 21. a5 {[%clk 00:21:30]} {[%emt 00:05:00]} Qd8
{[%clk 00:26:47]} {[%emt 00:00:28]} 22. b5 {[%clk 00:17:59]} {[%emt 00:04:02]}
Bc4 {[%clk 00:26:16]} {[%emt 00:01:00]} 23. Rb4 {[%clk 00:15:44]} {[%emt
00:02:44]} Qd5 {[%clk 00:20:38]} {[%emt 00:06:09]} 24. Rd1 {[%clk 00:13:44]}
{[%emt 00:02:29]} Bxd3 {[%clk 00:17:32]} {[%emt 00:03:37]} 25. Rxd3 {[%clk
00:13:46]} {[%emt 00:00:28]} Qa2 {[%clk 00:16:22]} {[%emt 00:01:40]} 26. Rbxd4
{[%clk 00:01:54]} {[%emt 00:12:23]} Rxc2 {[%clk 00:14:37]} {[%emt 00:02:15]} 27.
Rd2 {[%clk 00:02:23]} Rxd2 {[%clk 00:09:32]} {[%emt 00:05:36]} 28. Qxd2 {[%clk
00:01:19]} {[%emt 00:01:34]} Qb1+ {[%clk 00:09:55]} {[%emt 00:00:06]} 29. Kf2
{[%clk 00:01:43]} {[%emt 00:00:06]} Qxb5 {[%clk 00:10:19]} {[%emt 00:00:07]} 30.
Rd8 {[%clk 00:00:54]} {[%emt 00:01:19]} Qc5+ {[%clk 00:07:44]} {[%emt
00:03:04]} 31. Kg3 {[%clk 00:01:17]} {[%emt 00:00:08]} Qa3+ {[%clk 00:03:29]}
{[%emt 00:04:45]} 32. Rd3 {[%clk 00:01:42]} {[%emt 00:00:05]} Qc5 {[%emt
00:02:44]} 33. Rd5 {[%clk 00:01:25]} Qa3+ {[%clk 00:01:35]} {[%emt 00:00:57]}
34. Rd3 {[%clk 00:01:51]} {[%emt 00:00:04]} Rd8 {[%clk 00:01:45]} {[%emt
00:00:19]} 35. Rxa3 {[%clk 00:01:57]} {[%emt 00:00:24]} Rxd2 {[%clk 00:02:13]}
{[%emt 00:00:02]} 36. Rc3 {[%clk 00:01:46]} {[%emt 00:00:41]} Rd7 {[%clk
00:01:57]} {[%emt 00:00:46]} 37. Rc8+ {[%clk 00:02:08]} {[%emt 00:00:09]} Kg7
{[%clk 00:02:24]} {[%emt 00:00:03]} 38. Rb8 {[%clk 00:01:47]} {[%emt 00:00:51]}
a6 {[%clk 00:02:17]} {[%emt 00:00:37]} 39. h4 {[%clk 00:00:46]} {[%emt
00:01:31]} Re7 {[%clk 00:01:44]} {[%emt 00:01:02]} 40. Kf3 {[%clk 00:00:50]}
{[%emt 00:00:26]} f6 {[%clk 00:01:35]} {[%emt 00:00:39]} 41. e6 {[%clk
00:10:51]} {[%emt 00:20:29]} Kh6 {[%clk 00:32:00]} {[%emt 00:00:05]} 42. Kg3
{[%clk 00:11:17]} {[%emt 00:00:04]} Rxe6 {[%clk 00:24:50]} {[%emt 00:07:41]} 43.
Rxb7 {[%clk 00:11:35]} {[%emt 00:00:12]} Re3+ {[%clk 00:25:17]} {[%emt
00:00:03]} 44. Kh2 {[%clk 00:11:41]} {[%emt 00:00:24]} Ra3 {[%clk 00:25:43]}
{[%emt 00:00:03]} 45. Rf7 {[%clk 00:09:01]} {[%emt 00:03:10]} Rxa5 {[%clk
00:24:23]} {[%emt 00:01:50]} 46. Rxf6 {[%clk 00:09:08]} {[%emt 00:00:23]} Ra4
{[%clk 00:17:35]} {[%emt 00:07:18]} 47. Kh3 {[%clk 00:07:44]} {[%emt 00:01:55]}
a5 {[%clk 00:12:09]} {[%emt 00:05:56]} 48. Ra6 {[%clk 00:07:16]} {[%emt
00:00:58]} Ra1 {[%clk 00:05:22]} {[%emt 00:07:17]} 49. Ra7 {[%clk 00:05:28]}
{[%emt 00:02:19]} a4 {[%clk 00:05:49]} {[%emt 00:00:03]} 50. Kg3 {[%clk
00:04:54]} {[%emt 00:01:03]} Ra2 {[%clk 00:05:45]} {[%emt 00:00:33]} 51. Kh3
{[%clk 00:05:07]} {[%emt 00:00:17]} Ra3+ {[%clk 00:06:11]} {[%emt 00:00:05]} 52.
Kh2 {[%clk 00:04:56]} {[%emt 00:00:41]} Ra1 {[%clk 00:05:44]} {[%emt 00:00:57]}
53. Kg3 {[%clk 00:05:03]} {[%emt 00:00:22]} a3 {[%clk 00:06:11]} {[%emt
00:00:03]} 54. Kh3 {[%clk 00:04:51]} {[%emt 00:00:40]} Rh1+ {[%clk 00:05:55]}
{[%emt 00:00:48]} 55. Kg3 {[%clk 00:05:13]} {[%emt 00:00:09]} Ra1 {[%clk
00:06:22]} {[%emt 00:00:04]} 56. Kh3 {[%clk 00:05:18]} {[%emt 00:00:24]} Ra2
{[%clk 00:06:47]} {[%emt 00:00:05]} 57. Kg3 {[%clk 00:05:34]} {[%emt 00:00:13]}
Ra1 {[%clk 00:06:41]} {[%emt 00:00:04]} 1/2-1/2

[Event "Deloitte NK 2021"]
[Site "Hoogeveen, Netherlands"]
[Date "2021.10.19"]
[Round "5.3"]
[White "Van den Doel, Erik"]
[Black "Ten Hertog, Hugo"]
[Result "1/2-1/2"]
[TimeControl "90min/40moves + 30min + 30sec/move"]
[WhiteElo "2601"]
[BlackElo "2519"]

1. e4 {[%clk 01:30:56]} {[%emt 00:00:03]} c6 {[%clk 01:30:56]} {[%emt
00:00:05]} 2. d4 {[%clk 01:31:21]} {[%emt 00:00:05]} d5 {[%clk 01:31:24]}
{[%emt 00:00:02]} 3. exd5 {[%clk 01:31:47]} {[%emt 00:00:04]} cxd5 {[%clk
01:31:50]} {[%emt 00:00:04]} 4. Bd3 {[%clk 01:32:11]} {[%emt 00:00:05]} Nf6
{[%clk 01:32:17]} {[%emt 00:00:04]} 5. h3 {[%clk 01:32:15]} {[%emt 00:00:26]}
g6 {[%clk 01:32:35]} {[%emt 00:00:13]} 6. Nf3 {[%clk 01:30:54]} {[%emt
00:01:50]} Bf5 {[%clk 01:32:29]} {[%emt 00:00:35]} 7. Be2 {[%clk 01:28:34]}
{[%emt 00:02:51]} Nc6 {[%clk 01:32:40]} {[%emt 00:00:19]} 8. c3 {[%clk
01:28:49]} {[%emt 00:00:15]} e6 {[%clk 01:28:26]} {[%emt 00:04:44]} 9. Bf4
{[%clk 01:22:05]} {[%emt 00:07:15]} Nh5 {[%clk 00:57:17]} {[%emt 00:31:38]} 10.
Be5 {[%clk 00:52:12]} {[%emt 00:30:23]} f6 {[%clk 00:53:25]} {[%emt 00:04:23]}
11. Bh2 {[%clk 00:52:15]} {[%emt 00:00:27]} Bd6 {[%clk 00:53:28]} {[%emt
00:00:26]} 12. O-O {[%clk 00:28:29]} {[%emt 00:24:17]} Bxh2+ {[%clk 00:49:22]}
{[%emt 00:04:35]} 13. Nxh2 {[%clk 00:28:55]} {[%emt 00:00:04]} Nf4 {[%clk
00:49:03]} {[%emt 00:00:49]} 14. Re1 {[%clk 00:29:15]} {[%emt 00:00:10]} Qd6
{[%clk 00:39:57]} {[%emt 00:09:35]} 15. Bf1 {[%clk 00:27:14]} {[%emt 00:02:32]}
h5 {[%clk 00:36:49]} {[%emt 00:03:38]} 16. Na3 {[%clk 00:24:37]} {[%emt
00:03:08]} O-O-O {[%clk 00:32:03]} {[%emt 00:05:16]} 17. Rc1 {[%clk 00:13:47]}
{[%emt 00:11:19]} Kb8 {[%clk 00:29:45]} {[%emt 00:02:48]} 18. Nc2 {[%clk
00:07:15]} {[%emt 00:07:02]} e5 {[%clk 00:21:24]} {[%emt 00:08:52]} 19. Ne3
{[%clk 00:07:39]} {[%emt 00:00:06]} Bc8 {[%clk 00:21:03]} {[%emt 00:00:51]} 20.
dxe5 {[%clk 00:07:18]} {[%emt 00:00:51]} fxe5 {[%clk 00:21:29]} {[%emt
00:00:04]} 21. c4 {[%clk 00:07:44]} {[%emt 00:00:04]} d4 {[%clk 00:19:15]}
{[%emt 00:02:43]} 22. c5 {[%clk 00:08:11]} {[%emt 00:00:04]} Qf6 {[%clk
00:18:38]} {[%emt 00:01:07]} 23. Nc4 {[%clk 00:08:22]} {[%emt 00:00:18]} g5
{[%clk 00:11:26]} {[%emt 00:07:42]} 24. b4 {[%clk 00:06:23]} {[%emt 00:02:29]}
Nxb4 {[%clk 00:09:56]} {[%emt 00:02:01]} 25. Nxe5 {[%clk 00:02:29]} {[%emt
00:04:24]} d3 {[%clk 00:10:01]} {[%emt 00:00:25]} 26. c6 {[%clk 00:02:43]}
{[%emt 00:00:16]} Rh7 {[%clk 00:03:32]} {[%emt 00:06:58]} 27. Qd2 {[%clk
00:02:39]} {[%emt 00:00:35]} Nxc6 {[%clk 00:03:41]} {[%emt 00:00:21]} 28. Nxc6+
{[%clk 00:02:38]} {[%emt 00:00:32]} bxc6 {[%clk 00:04:08]} {[%emt 00:00:02]} 29.
Nf3 {[%clk 00:02:30]} {[%emt 00:00:37]} Nxh3+ {[%clk 00:01:50]} {[%emt
00:02:48]} 30. gxh3 {[%clk 00:02:16]} {[%emt 00:00:44]} Qxf3 {[%clk 00:02:17]}
{[%emt 00:00:04]} 31. Bg2 {[%clk 00:02:38]} {[%emt 00:00:08]} Qf4 {[%clk
00:02:42]} {[%emt 00:00:03]} 32. Qa5 {[%clk 00:02:01]} {[%emt 00:01:08]} Rc7
{[%clk 00:00:31]} {[%emt 00:02:41]} 33. Bxc6 {[%clk 00:00:44]} {[%emt
00:01:47]} Bb7 {[%clk 00:00:32]} {[%emt 00:00:30]} 34. Rb1 {[%clk 00:00:50]}
{[%emt 00:00:24]} Qd6 {[%clk 00:00:41]} {[%emt 00:00:20]} 35. Bg2 {[%clk
00:00:34]} {[%emt 00:00:47]} d2 {[%clk 00:00:41]} {[%emt 00:00:30]} 36. Red1
{[%clk 00:00:51]} {[%emt 00:00:13]} Kc8 {[%clk 00:00:42]} {[%emt 00:00:30]} 37.
Qxg5 {[%clk 00:00:36]} {[%emt 00:00:44]} Bxg2 {[%clk 00:00:36]} {[%emt
00:00:35]} 38. Kxg2 {[%clk 00:00:41]} {[%emt 00:00:25]} Qd5+ {[%clk 00:00:31]}
{[%emt 00:00:35]} 39. Qxd5 {[%clk 00:01:07]} {[%emt 00:00:05]} Rxd5 {[%clk
00:01:00]} 40. Rb2 {[%clk 00:01:21]} {[%emt 00:00:16]} Rcd7 {[%clk 00:01:02]}
{[%emt 00:00:27]} 41. Kf1 {[%clk 00:20:45]} {[%emt 00:11:07]} Kc7 {[%clk
00:29:32]} {[%emt 00:01:58]} 42. Ke2 {[%clk 00:16:10]} {[%emt 00:05:06]} Re7+
{[%clk 00:29:55]} {[%emt 00:00:07]} 43. Kf1 {[%clk 00:16:35]} {[%emt 00:00:06]}
Red7 {[%clk 00:30:20]} {[%emt 00:00:03]} 1/2-1/2

[Event "Deloitte NK 2021"]
[Site "Hoogeveen, Netherlands"]
[Date "2021.10.19"]
[Round "5.4"]
[White "Van der Lende, Ilias"]
[Black "Reinderman, Dimitri"]
[Result "1/2-1/2"]
[TimeControl "90min/40moves + 30min + 30sec/move"]
[WhiteElo "2388"]
[BlackElo "2596"]

1. e4 {[%clk 01:30:55]} {[%emt 00:00:04]} c6 {[%clk 01:30:50]} {[%emt
00:00:11]} 2. c4 {[%clk 01:29:04]} {[%emt 00:02:21]} d5 {[%clk 01:31:11]}
{[%emt 00:00:10]} 3. exd5 {[%clk 01:29:23]} {[%emt 00:00:10]} cxd5 {[%clk
01:31:37]} {[%emt 00:00:04]} 4. cxd5 {[%clk 01:29:40]} {[%emt 00:00:12]} Nf6
{[%clk 01:32:02]} {[%emt 00:00:06]} 5. Nc3 {[%clk 01:30:03]} {[%emt 00:00:07]}
Nxd5 {[%clk 01:32:03]} {[%emt 00:00:29]} 6. Qb3 {[%clk 01:30:27]} {[%emt
00:00:06]} Nb6 {[%clk 01:31:51]} {[%emt 00:00:42]} 7. Bb5+ {[%clk 01:28:35]}
{[%emt 00:02:21]} Bd7 {[%clk 01:31:53]} {[%emt 00:00:29]} 8. a4 {[%clk
01:28:35]} {[%emt 00:00:30]} a5 {[%clk 01:28:52]} {[%emt 00:03:30]} 9. Nf3
{[%clk 01:27:50]} {[%emt 00:01:16]} e6 {[%clk 01:28:01]} {[%emt 00:01:21]} 10.
Ne5 {[%clk 01:23:52]} {[%emt 00:04:27]} Nc6 {[%clk 01:20:29]} {[%emt 00:08:02]}
11. Nxd7 {[%clk 01:22:31]} {[%emt 00:01:52]} Nxd7 {[%clk 01:20:24]} {[%emt
00:00:34]} 12. O-O {[%clk 01:13:59]} {[%emt 00:09:01]} Bb4 {[%clk 01:17:48]}
{[%emt 00:03:07]} 13. Qd1 {[%clk 01:04:37]} {[%emt 00:09:52]} O-O {[%clk
01:07:53]} {[%emt 00:10:25]} 14. d4 {[%clk 01:03:24]} {[%emt 00:01:43]} Nf6
{[%clk 01:07:10]} {[%emt 00:01:14]} 15. Be3 {[%clk 00:54:34]} {[%emt 00:09:19]}
Qd6 {[%clk 01:05:13]} {[%emt 00:02:27]} 16. Bd3 {[%clk 00:48:12]} {[%emt
00:06:52]} Rfd8 {[%clk 01:01:47]} {[%emt 00:03:56]} 17. Nb5 {[%clk 00:47:10]}
{[%emt 00:01:32]} Qd7 {[%clk 01:01:41]} {[%emt 00:00:36]} 18. Qf3 {[%clk
00:41:59]} {[%emt 00:05:41]} Be7 {[%clk 00:59:02]} {[%emt 00:03:09]} 19. Rad1
{[%clk 00:40:08]} {[%emt 00:02:22]} Nb4 {[%clk 00:56:44]} {[%emt 00:02:47]} 20.
Bb1 {[%clk 00:40:30]} {[%emt 00:00:09]} Qd5 {[%clk 00:45:42]} {[%emt 00:11:32]}
21. Qxd5 {[%clk 00:36:17]} {[%emt 00:04:42]} Nfxd5 {[%clk 00:45:02]} {[%emt
00:01:10]} 22. Rc1 {[%clk 00:34:29]} {[%emt 00:02:19]} Rac8 {[%clk 00:43:11]}
{[%emt 00:02:20]} 23. Rxc8 {[%clk 00:27:34]} {[%emt 00:07:25]} Rxc8 {[%clk
00:43:35]} {[%emt 00:00:06]} 24. Rc1 {[%clk 00:27:55]} {[%emt 00:00:08]} Rd8
{[%clk 00:35:50]} {[%emt 00:08:16]} 25. Be4 {[%clk 00:16:51]} {[%emt 00:11:34]}
f5 {[%clk 00:35:23]} {[%emt 00:00:56]} 26. Bxd5 {[%clk 00:14:54]} {[%emt
00:02:28]} Nxd5 {[%clk 00:35:03]} {[%emt 00:00:50]} 27. Bd2 {[%clk 00:15:16]}
{[%emt 00:00:08]} Kf7 {[%clk 00:25:58]} {[%emt 00:09:35]} 28. b3 {[%clk
00:15:22]} {[%emt 00:00:25]} Bb4 {[%clk 00:23:38]} {[%emt 00:02:49]} 29. Bxb4
{[%clk 00:15:46]} {[%emt 00:00:06]} axb4 {[%clk 00:24:02]} {[%emt 00:00:06]} 30.
Rc4 {[%clk 00:11:05]} {[%emt 00:05:11]} Ke7 {[%clk 00:22:56]} {[%emt 00:01:36]}
31. Nc7 {[%clk 00:05:41]} {[%emt 00:05:54]} Nc3 {[%clk 00:22:20]} {[%emt
00:01:06]} 32. Kf1 {[%clk 00:06:07]} {[%emt 00:00:04]} e5 {[%clk 00:18:35]}
{[%emt 00:04:14]} 33. d5 {[%clk 00:05:07]} {[%emt 00:01:30]} Rc8 {[%clk
00:05:22]} {[%emt 00:13:44]} 34. d6+ {[%clk 00:05:32]} {[%emt 00:00:04]} Kxd6
{[%clk 00:04:44]} {[%emt 00:01:09]} 35. Nb5+ {[%clk 00:05:57]} {[%emt
00:00:05]} Kd7 {[%clk 00:05:09]} {[%emt 00:00:04]} 36. Rxc8 {[%clk 00:05:50]}
{[%emt 00:00:38]} Kxc8 {[%clk 00:05:36]} {[%emt 00:00:03]} 37. Nxc3 {[%clk
00:05:23]} {[%emt 00:00:56]} bxc3 {[%clk 00:06:03]} {[%emt 00:00:04]} 38. Ke2
{[%clk 00:05:48]} {[%emt 00:00:04]} e4 {[%clk 00:01:40]} {[%emt 00:04:53]} 39.
Kd1 {[%clk 00:06:11]} {[%emt 00:00:08]} Kc7 {[%clk 00:01:24]} {[%emt 00:00:46]}
40. Kc2 {[%clk 00:06:36]} {[%emt 00:00:04]} Kc6 {[%clk 00:01:06]} {[%emt
00:00:48]} 41. Kxc3 {[%clk 00:07:00]} {[%emt 00:00:06]} Kd5 {[%clk 00:30:08]}
{[%emt 00:01:29]} 42. g3 {[%clk 00:29:33]} {[%emt 00:07:57]} g5 {[%clk
00:24:52]} {[%emt 00:05:45]} 43. b4 {[%clk 00:28:18]} {[%emt 00:01:45]} f4
{[%clk 00:19:03]} {[%emt 00:06:19]} 44. gxf4 {[%clk 00:28:32]} {[%emt
00:00:16]} gxf4 {[%clk 00:19:29]} {[%emt 00:00:05]} 45. a5 {[%clk 00:28:58]}
{[%emt 00:00:04]} f3 {[%clk 00:19:19]} {[%emt 00:00:40]} 46. Kd2 {[%clk
00:29:24]} {[%emt 00:00:03]} Kc4 {[%clk 00:19:38]} {[%emt 00:00:12]} 47. Ke3
{[%clk 00:29:50]} {[%emt 00:00:03]} Kxb4 {[%clk 00:20:01]} {[%emt 00:00:07]} 48.
Kxe4 {[%clk 00:30:17]} {[%emt 00:00:03]} Kxa5 {[%clk 00:20:27]} {[%emt
00:00:05]} 49. Kxf3 {[%clk 00:30:43]} {[%emt 00:00:03]} Kb6 {[%clk 00:13:01]}
{[%emt 00:07:57]} 50. Ke4 {[%clk 00:27:55]} {[%emt 00:03:18]} Kc6 {[%clk
00:12:39]} {[%emt 00:00:52]} 51. Ke5 {[%clk 00:27:55]} {[%emt 00:00:29]} Kd7
{[%clk 00:12:37]} {[%emt 00:00:32]} 52. Kd5 {[%clk 00:27:16]} {[%emt 00:01:09]}
h5 {[%clk 00:11:38]} {[%emt 00:01:29]} 53. Kc5 {[%clk 00:25:58]} {[%emt
00:01:48]} Ke6 {[%clk 00:09:33]} {[%emt 00:02:35]} 54. Kb6 {[%clk 00:26:24]}
{[%emt 00:00:04]} Kf5 {[%clk 00:09:27]} {[%emt 00:00:36]} 55. Kxb7 {[%clk
00:26:41]} {[%emt 00:00:13]} Kg4 {[%clk 00:09:26]} {[%emt 00:00:31]} 56. Kc6
{[%clk 00:26:34]} {[%emt 00:00:37]} Kf3 {[%clk 00:08:53]} {[%emt 00:01:03]} 57.
h4 {[%clk 00:24:22]} {[%emt 00:02:43]} Kxf2 {[%clk 00:08:14]} {[%emt 00:01:08]}
58. Kd5 {[%clk 00:24:45]} {[%emt 00:00:07]} Kg3 {[%clk 00:08:40]} {[%emt
00:00:04]} 59. Ke4 {[%clk 00:25:11]} {[%emt 00:00:05]} Kxh4 {[%clk 00:09:07]}
{[%emt 00:00:03]} 60. Kf3 {[%clk 00:25:26]} {[%emt 00:00:14]} Kh3 {[%clk
00:09:23]} {[%emt 00:00:14]} 61. Kf2 {[%clk 00:25:46]} {[%emt 00:00:10]} h4
{[%clk 00:09:49]} {[%emt 00:00:05]} 62. Kg1 {[%clk 00:26:12]} {[%emt 00:00:03]}
Kg3 {[%clk 00:10:17]} {[%emt 00:00:02]} 63. Kh1 {[%clk 00:26:38]} {[%emt
00:00:04]} h3 {[%clk 00:10:43]} {[%emt 00:00:04]} 64. Kg1 {[%clk 00:27:06]}
{[%emt 00:00:01]} h2+ {[%clk 00:11:07]} {[%emt 00:00:07]} 65. Kh1 {[%clk
00:27:34]} {[%emt 00:00:02]} Kh3 {[%clk 00:11:02]} {[%emt 00:00:05]} 1/2-1/2